[Event "Titled Tuesday Blitz November 07 Late 2023"]
[White "Tokat, Nehir"]
[Black "Inepton_Fermion"]
[WhiteFideId "34557555"]
[WhiteElo "2251"]
[BlackElo "2408"]
[Result "0-1"]
[Round "11"]
[TimeControl "180+1"]
[Date "2023.11.07"]
[WhiteClock "0:00:09"]
[BlackClock "0:00:04"]
[Board "72"]

1. d4 {[%clk 0:03:00]}  Nf6 {[%clk 0:02:58]} 2. Bg5 {[%clk 0:02:58]}  d5 {[%clk 0:02:57]} 3. e3 {[%clk 0:02:53]}  e6 {[%clk 0:02:41]} 4. Nd2 {[%clk 0:02:48]}  Be7 {[%clk 0:02:41]} 5. Ngf3 {[%clk 0:02:43]}  O-O {[%clk 0:02:40]} 6. h3 {[%clk 0:02:41]}  Nbd7 {[%clk 0:02:32]} 7. Bd3 {[%clk 0:02:39]}  h6 {[%clk 0:02:31]} 8. Bh4 {[%clk 0:02:37]}  c5 {[%clk 0:02:32]} 9. c4 {[%clk 0:02:35]}  cxd4 {[%clk 0:02:26]} 10. exd4 {[%clk 0:02:34]}  dxc4 {[%clk 0:02:21]} 11. Bxc4 {[%clk 0:02:35]}  b6 {[%clk 0:02:14]} 12. O-O {[%clk 0:02:33]}  Bb7 {[%clk 0:02:13]} 13. a3 {[%clk 0:02:20]}  a6 {[%clk 0:01:38]} 14. Rc1 {[%clk 0:02:17]}  b5 {[%clk 0:01:30]} 15. Ba2 {[%clk 0:02:16]}  Nb6 {[%clk 0:01:31]} 16. Qe2 {[%clk 0:02:01]}  Nfd5 {[%clk 0:01:18]} 17. Bg3 {[%clk 0:01:59]}  Bd6 {[%clk 0:01:13]} 18. Ne5 {[%clk 0:01:59]}  Rc8 {[%clk 0:00:54]} 19. Bb1 {[%clk 0:01:52]}  Nf6 {[%clk 0:00:52]} 20. Qd3 {[%clk 0:01:27]}  Be7 {[%clk 0:00:44]} 21. Bh4 {[%clk 0:01:21]}  Qd5 {[%clk 0:00:28]} 22. f3 {[%clk 0:01:07]}  Rfd8 {[%clk 0:00:24]} 23. Rxc8 {[%clk 0:00:44]}  Nxc8 {[%clk 0:00:14]} 24. Nb3 {[%clk 0:00:40]}  Nd6 {[%clk 0:00:08]} 25. Rc1 {[%clk 0:00:38]}  Nf5 {[%clk 0:00:07]} 26. Bxf6 {[%clk 0:00:36]}  Bxf6 {[%clk 0:00:06]} 27. g4 {[%clk 0:00:36]}  Nxd4 {[%clk 0:00:05]} 28. Qh7+ {[%clk 0:00:35]}  Kf8 {[%clk 0:00:05]} 29. Qh8+ {[%clk 0:00:32]}  Ke7 {[%clk 0:00:05]} 30. Rc7+ {[%clk 0:00:32]}  Kd6 {[%clk 0:00:01]} 31. Nxf7+ {[%clk 0:00:19]}  Kxc7 {[%clk 0:00:01]} 32. Nxd8 {[%clk 0:00:19]}  Qxd8 {[%clk 0:00:01]} 33. Qxd8+ {[%clk 0:00:17]}  Kxd8 {[%clk 0:00:02]} 34. Nxd4 {[%clk 0:00:17]}  Bxd4+ {[%clk 0:00:03]} 35. Kg2 {[%clk 0:00:17]}  e5 {[%clk 0:00:03]} 36. Kg3 {[%clk 0:00:17]}  Ke7 {[%clk 0:00:03]} 37. Be4 {[%clk 0:00:17]}  Bd5 {[%clk 0:00:03]} 38. Bxd5 {[%clk 0:00:17]}  Kd6 {[%clk 0:00:03]} 39. Be4 {[%clk 0:00:17]}  Bxb2 {[%clk 0:00:04]} 40. Bb7 {[%clk 0:00:17]}  a5 {[%clk 0:00:03]} 41. Ba6 {[%clk 0:00:16]}  Kc5 {[%clk 0:00:04]} 42. f4 {[%clk 0:00:13]}  exf4+ {[%clk 0:00:04]} 43. Kxf4 {[%clk 0:00:13]}  Bxa3 {[%clk 0:00:05]} 44. Bb7 {[%clk 0:00:13]}  Bb2 {[%clk 0:00:04]} 45. Be4 {[%clk 0:00:13]}  a4 {[%clk 0:00:04]} 46. Ke3 {[%clk 0:00:14]}  b4 {[%clk 0:00:04]} 47. Bb1 {[%clk 0:00:14]}  b3 {[%clk 0:00:04]} 48. Kd2 {[%clk 0:00:13]}  a3 {[%clk 0:00:04]} 49. Kd3 {[%clk 0:00:11]}  a2 {[%clk 0:00:04]} 50. Ke4 {[%clk 0:00:09]}  axb1=Q+ {[%clk 0:00:04]} 0-1


[Site "https://www.chess.com"]

[Event "Titled Tuesday Blitz November 07 Late 2023"]
[White "Tarnowska, Aleksandra"]
[Black "Haitin, Ilja"]
[WhiteFideId "1180967"]
[BlackFideId "4501764"]
[WhiteElo "2176"]
[BlackElo "2393"]
[Result "0-1"]
[Round "11"]
[TimeControl "180+1"]
[Date "2023.11.07"]
[WhiteClock "0:00:02"]
[BlackClock "0:00:07"]
[Board "76"]

1. e4 {[%clk 0:02:58]}  e5 {[%clk 0:02:59]} 2. Nf3 {[%clk 0:02:57]}  Nc6 {[%clk 0:02:57]} 3. Bb5 {[%clk 0:02:57]}  d6 {[%clk 0:02:53]} 4. O-O {[%clk 0:02:55]}  Bd7 {[%clk 0:02:50]} 5. c3 {[%clk 0:02:53]}  a6 {[%clk 0:02:46]} 6. Ba4 {[%clk 0:02:53]}  Nf6 {[%clk 0:02:45]} 7. Bc2 {[%clk 0:02:53]}  g6 {[%clk 0:02:46]} 8. d4 {[%clk 0:02:49]}  Bg7 {[%clk 0:02:45]} 9. h3 {[%clk 0:02:48]}  O-O {[%clk 0:02:44]} 10. Re1 {[%clk 0:02:40]}  Re8 {[%clk 0:02:44]} 11. Nbd2 {[%clk 0:02:37]}  exd4 {[%clk 0:02:10]} 12. cxd4 {[%clk 0:02:35]}  Nb4 {[%clk 0:02:09]} 13. Bb1 {[%clk 0:02:33]}  a5 {[%clk 0:02:09]} 14. a3 {[%clk 0:02:25]}  Nc6 {[%clk 0:02:01]} 15. Nf1 {[%clk 0:02:24]}  d5 {[%clk 0:01:57]} 16. e5 {[%clk 0:02:16]}  Ne4 {[%clk 0:01:49]} 17. Ng3 {[%clk 0:01:45]}  Nxg3 {[%clk 0:01:40]} 18. fxg3 {[%clk 0:01:46]}  Ne7 {[%clk 0:01:38]} 19. Bg5 {[%clk 0:01:41]}  h6 {[%clk 0:01:36]} 20. Bd2 {[%clk 0:01:32]}  c5 {[%clk 0:01:36]} 21. dxc5 {[%clk 0:01:26]}  Qc7 {[%clk 0:01:31]} 22. Be3 {[%clk 0:01:22]}  Nf5 {[%clk 0:01:28]} 23. Bxf5 {[%clk 0:01:20]}  Bxf5 {[%clk 0:01:27]} 24. Bd4 {[%clk 0:01:19]}  Be4 {[%clk 0:01:25]} 25. Rc1 {[%clk 0:01:13]}  Bxf3 {[%clk 0:01:09]} 26. Qxf3 {[%clk 0:01:12]}  Bxe5 {[%clk 0:01:10]} 27. Qxd5 {[%clk 0:00:49]}  Bxd4+ {[%clk 0:00:59]} 28. Qxd4 {[%clk 0:00:48]}  Qxg3 {[%clk 0:00:58]} 29. Qf2 {[%clk 0:00:38]}  Qb3 {[%clk 0:00:51]} 30. Red1 {[%clk 0:00:24]}  Re7 {[%clk 0:00:42]} 31. Rd2 {[%clk 0:00:20]}  Rae8 {[%clk 0:00:40]} 32. Rcd1 {[%clk 0:00:21]}  Qb5 {[%clk 0:00:27]} 33. Rd8 {[%clk 0:00:15]}  a4 {[%clk 0:00:26]} 34. Kh2 {[%clk 0:00:14]}  Re2 {[%clk 0:00:21]} 35. Rxe8+ {[%clk 0:00:12]}  Qxe8 {[%clk 0:00:20]} 36. Qd4 {[%clk 0:00:09]}  Qe5+ {[%clk 0:00:13]} 37. Qxe5 {[%clk 0:00:09]}  Rxe5 {[%clk 0:00:14]} 38. Rd7 {[%clk 0:00:06]}  Rxc5 {[%clk 0:00:11]} 39. Rxb7 {[%clk 0:00:07]}  Rc2 {[%clk 0:00:09]} 40. Rb4 {[%clk 0:00:07]}  Kg7 {[%clk 0:00:09]} 41. Rxa4 {[%clk 0:00:07]}  Rxb2 {[%clk 0:00:09]} 42. Ra6 {[%clk 0:00:07]}  Ra2 {[%clk 0:00:09]} 43. Kg3 {[%clk 0:00:07]}  g5 {[%clk 0:00:09]} 44. Kf3 {[%clk 0:00:07]}  f6 {[%clk 0:00:09]} 45. g3 {[%clk 0:00:05]}  Kg6 {[%clk 0:00:09]} 46. Kg4 {[%clk 0:00:03]}  Rf2 {[%clk 0:00:07]} 47. h4 {[%clk 0:00:04]}  h5+ {[%clk 0:00:06]} 48. Kh3 {[%clk 0:00:02]}  g4# {[%clk 0:00:07]} 0-1


[Site "https://www.chess.com"]

[Event "Titled Tuesday Blitz November 07 Late 2023"]
[White "Maect19"]
[Black "Pace, Christopher"]
[BlackFideId "2610167"]
[WhiteElo "2332"]
[BlackElo "2405"]
[Result "1-0"]
[Round "11"]
[TimeControl "180+1"]
[Date "2023.11.07"]
[WhiteClock "0:01:01"]
[BlackClock "0:00:00"]
[Board "77"]

1. d4 {[%clk 0:03:00]}  Nf6 {[%clk 0:02:58]} 2. Nf3 {[%clk 0:03:00]}  g6 {[%clk 0:02:58]} 3. c3 {[%clk 0:03:00]}  Bg7 {[%clk 0:02:58]} 4. Bg5 {[%clk 0:03:00]}  O-O {[%clk 0:02:59]} 5. Nbd2 {[%clk 0:03:00]}  d5 {[%clk 0:02:59]} 6. e3 {[%clk 0:02:59]}  c5 {[%clk 0:02:59]} 7. Be2 {[%clk 0:02:59]}  Nc6 {[%clk 0:03:00]} 8. O-O {[%clk 0:02:59]}  Bf5 {[%clk 0:02:54]} 9. dxc5 {[%clk 0:02:58]}  a5 {[%clk 0:02:38]} 10. Nd4 {[%clk 0:02:55]}  Bd7 {[%clk 0:02:38]} 11. a4 {[%clk 0:02:53]}  e5 {[%clk 0:02:34]} 12. Nxc6 {[%clk 0:02:50]}  Bxc6 {[%clk 0:02:35]} 13. Bb5 {[%clk 0:02:48]}  Qc7 {[%clk 0:01:56]} 14. b4 {[%clk 0:02:39]}  b6 {[%clk 0:01:22]} 15. Nb3 {[%clk 0:02:32]}  Ne4 {[%clk 0:01:22]} 16. Bxc6 {[%clk 0:02:21]}  Qxc6 {[%clk 0:01:22]} 17. b5 {[%clk 0:02:20]}  Qc7 {[%clk 0:01:15]} 18. Qxd5 {[%clk 0:01:51]}  Nxg5 {[%clk 0:01:14]} 19. c6 {[%clk 0:01:49]}  Rfd8 {[%clk 0:01:14]} 20. Qc4 {[%clk 0:01:48]}  Rd6 {[%clk 0:00:59]} 21. Rad1 {[%clk 0:01:46]}  Rad8 {[%clk 0:00:59]} 22. Rxd6 {[%clk 0:01:46]}  Rxd6 {[%clk 0:00:59]} 23. Qe2 {[%clk 0:01:31]}  Ne4 {[%clk 0:00:58]} 24. Qc2 {[%clk 0:01:28]}  f5 {[%clk 0:00:57]} 25. c4 {[%clk 0:01:26]}  Bf8 {[%clk 0:00:32]} 26. c5 {[%clk 0:01:20]}  bxc5 {[%clk 0:00:32]} 27. Nxc5 {[%clk 0:01:20]}  Nxc5 {[%clk 0:00:16]} 28. Qxc5 {[%clk 0:01:19]}  Rd8 {[%clk 0:00:11]} 29. Qc4+ {[%clk 0:01:15]}  Kg7 {[%clk 0:00:11]} 30. g3 {[%clk 0:01:13]}  Bb4 {[%clk 0:00:11]} 31. Rc1 {[%clk 0:01:07]}  Rd2 {[%clk 0:00:08]} 32. Qe6 {[%clk 0:01:03]}  Bd6 {[%clk 0:00:00]} 33. Rb1 {[%clk 0:01:01]} 1-0


[Site "https://www.chess.com"]

[Event "Titled Tuesday Blitz November 07 Late 2023"]
[White "KorolDimitriy75"]
[Black "Gerbelli Neto, Eduardo"]
[BlackFideId "2103281"]
[WhiteElo "2323"]
[BlackElo "2369"]
[Result "1-0"]
[Round "11"]
[TimeControl "180+1"]
[Date "2023.11.07"]
[WhiteClock "0:01:26"]
[BlackClock "0:00:59"]
[Board "78"]

1. d4 {[%clk 0:03:00]}  d5 {[%clk 0:02:59]} 2. c4 {[%clk 0:03:01]}  c6 {[%clk 0:02:59]} 3. Nc3 {[%clk 0:03:00]}  Nf6 {[%clk 0:02:59]} 4. e3 {[%clk 0:03:00]}  e6 {[%clk 0:02:59]} 5. Nf3 {[%clk 0:03:01]}  Nbd7 {[%clk 0:02:59]} 6. Bd3 {[%clk 0:03:01]}  dxc4 {[%clk 0:02:59]} 7. Bxc4 {[%clk 0:03:02]}  b5 {[%clk 0:03:00]} 8. Be2 {[%clk 0:03:02]}  a6 {[%clk 0:03:00]} 9. e4 {[%clk 0:03:02]}  c5 {[%clk 0:02:59]} 10. e5 {[%clk 0:03:03]}  cxd4 {[%clk 0:02:58]} 11. Qxd4 {[%clk 0:03:03]}  Bc5 {[%clk 0:02:46]} 12. Qh4 {[%clk 0:03:03]}  Nd5 {[%clk 0:02:37]} 13. Qg3 {[%clk 0:03:03]}  Kf8 {[%clk 0:02:14]} 14. O-O {[%clk 0:02:55]}  Nxc3 {[%clk 0:02:13]} 15. bxc3 {[%clk 0:02:54]}  Bb7 {[%clk 0:02:10]} 16. Rd1 {[%clk 0:02:42]}  Qc7 {[%clk 0:02:10]} 17. a4 {[%clk 0:02:26]}  Rb8 {[%clk 0:01:50]} 18. axb5 {[%clk 0:02:14]}  axb5 {[%clk 0:01:51]} 19. Bxb5 {[%clk 0:01:54]}  Bxf3 {[%clk 0:01:23]} 20. Rxd7 {[%clk 0:01:53]}  Rd8 {[%clk 0:01:20]} 21. Rxc7 {[%clk 0:01:26]}  Rd1+ {[%clk 0:01:18]} 22. Bf1 {[%clk 0:01:26]}  Be2 {[%clk 0:00:59]} 23. Bb2 {[%clk 0:01:26]} 1-0


[Site "https://www.chess.com"]

[Event "Titled Tuesday Blitz November 07 Late 2023"]
[White "PapaieDudu"]
[Black "Zampronha, Wladimir Camilo"]
[BlackFideId "2103087"]
[WhiteElo "2356"]
[BlackElo "2307"]
[Result "1-0"]
[Round "11"]
[TimeControl "180+1"]
[Date "2023.11.07"]
[WhiteClock "0:00:23"]
[BlackClock "0:00:00"]
[Board "81"]

1. e4 {[%clk 0:03:00]}  c5 {[%clk 0:02:47]} 2. Nf3 {[%clk 0:03:01]}  e6 {[%clk 0:02:47]} 3. d4 {[%clk 0:03:01]}  cxd4 {[%clk 0:02:47]} 4. Nxd4 {[%clk 0:03:02]}  Nc6 {[%clk 0:02:44]} 5. Nc3 {[%clk 0:03:03]}  Qc7 {[%clk 0:02:45]} 6. Be3 {[%clk 0:03:03]}  a6 {[%clk 0:02:45]} 7. Qd2 {[%clk 0:03:02]}  Nf6 {[%clk 0:02:42]} 8. O-O-O {[%clk 0:03:02]}  Bb4 {[%clk 0:02:41]} 9. f3 {[%clk 0:03:02]}  d5 {[%clk 0:02:39]} 10. a3 {[%clk 0:02:25]}  Bd6 {[%clk 0:02:31]} 11. exd5 {[%clk 0:02:17]}  exd5 {[%clk 0:02:21]} 12. Bd3 {[%clk 0:02:08]}  O-O {[%clk 0:02:19]} 13. g4 {[%clk 0:02:03]}  Re8 {[%clk 0:02:18]} 14. Kb1 {[%clk 0:01:55]}  Be5 {[%clk 0:01:29]} 15. g5 {[%clk 0:01:47]}  Nxd4 {[%clk 0:01:25]} 16. Bxd4 {[%clk 0:01:47]}  Bxd4 {[%clk 0:01:25]} 17. Bxh7+ {[%clk 0:01:46]}  Nxh7 {[%clk 0:01:24]} 18. Qxd4 {[%clk 0:01:47]}  Be6 {[%clk 0:01:15]} 19. f4 {[%clk 0:01:46]}  Qc4 {[%clk 0:01:13]} 20. Qd2 {[%clk 0:01:46]}  d4 {[%clk 0:01:09]} 21. Qxd4 {[%clk 0:01:46]}  Qxd4 {[%clk 0:01:09]} 22. Rxd4 {[%clk 0:01:47]}  Red8 {[%clk 0:01:06]} 23. Rhd1 {[%clk 0:01:47]}  Rxd4 {[%clk 0:01:06]} 24. Rxd4 {[%clk 0:01:48]}  g6 {[%clk 0:01:03]} 25. Ne4 {[%clk 0:01:47]}  Bf5 {[%clk 0:01:01]} 26. Nd6 {[%clk 0:01:46]}  Be6 {[%clk 0:00:41]} 27. Nxb7 {[%clk 0:01:44]}  Rb8 {[%clk 0:00:39]} 28. Nc5 {[%clk 0:01:45]}  Rb6 {[%clk 0:00:36]} 29. Ne4 {[%clk 0:01:44]}  Kg7 {[%clk 0:00:34]} 30. c4 {[%clk 0:01:45]}  Nf8 {[%clk 0:00:30]} 31. c5 {[%clk 0:01:44]}  Rb3 {[%clk 0:00:29]} 32. Nf6 {[%clk 0:01:40]}  Rh3 {[%clk 0:00:27]} 33. Rd2 {[%clk 0:01:35]}  Rf3 {[%clk 0:00:27]} 34. Rd4 {[%clk 0:01:27]}  Rh3 {[%clk 0:00:24]} 35. Rd2 {[%clk 0:01:27]}  Rf3 {[%clk 0:00:24]} 36. Rd6 {[%clk 0:01:08]}  Rxf4 {[%clk 0:00:23]} 37. Rxa6 {[%clk 0:01:08]}  Rf2 {[%clk 0:00:20]} 38. c6 {[%clk 0:00:58]}  Bf5+ {[%clk 0:00:21]} 39. Ka2 {[%clk 0:00:56]}  Ne6 {[%clk 0:00:22]} 40. h4 {[%clk 0:00:53]}  Rh2 {[%clk 0:00:21]} 41. Ra8 {[%clk 0:00:53]}  Nf8 {[%clk 0:00:19]} 42. c7 {[%clk 0:00:50]}  Rxh4 {[%clk 0:00:18]} 43. c8=Q {[%clk 0:00:49]}  Bxc8 {[%clk 0:00:19]} 44. Rxc8 {[%clk 0:00:50]}  Rd4 {[%clk 0:00:15]} 45. b4 {[%clk 0:00:47]}  Rd2+ {[%clk 0:00:09]} 46. Kb3 {[%clk 0:00:47]}  Rg2 {[%clk 0:00:10]} 47. Ne4 {[%clk 0:00:35]}  Rg4 {[%clk 0:00:10]} 48. Rc4 {[%clk 0:00:31]}  Ne6 {[%clk 0:00:10]} 49. b5 {[%clk 0:00:29]}  Nxg5 {[%clk 0:00:11]} 50. Nxg5 {[%clk 0:00:25]}  Rxg5 {[%clk 0:00:10]} 51. b6 {[%clk 0:00:26]}  Rg1 {[%clk 0:00:10]} 52. Rb4 {[%clk 0:00:22]}  Re1 {[%clk 0:00:05]} 53. b7 {[%clk 0:00:22]}  Re8 {[%clk 0:00:06]} 54. b8=Q {[%clk 0:00:21]}  Rxb8 {[%clk 0:00:07]} 55. Rxb8 {[%clk 0:00:22]}  g5 {[%clk 0:00:07]} 56. Kc2 {[%clk 0:00:22]}  g4 {[%clk 0:00:05]} 57. Kd3 {[%clk 0:00:22]}  g3 {[%clk 0:00:00]} 58. Ke2 {[%clk 0:00:23]} 1-0


[Site "https://www.chess.com"]

[Event "Titled Tuesday Blitz November 07 Late 2023"]
[White "Skaric, Djuro"]
[Black "Petersson, Kjell"]
[WhiteFideId "934569"]
[BlackFideId "1705148"]
[WhiteElo "2341"]
[BlackElo "2136"]
[Result "1-0"]
[Round "11"]
[TimeControl "180+1"]
[Date "2023.11.07"]
[WhiteClock "0:01:04"]
[BlackClock "0:00:00"]
[Board "82"]

1. g3 {[%clk 0:03:00]}  f5 {[%clk 0:02:55]} 2. Bg2 {[%clk 0:03:01]}  Nf6 {[%clk 0:02:55]} 3. d3 {[%clk 0:03:02]}  Nc6 {[%clk 0:02:52]} 4. Nc3 {[%clk 0:03:02]}  e5 {[%clk 0:02:51]} 5. Nf3 {[%clk 0:03:03]}  Bb4 {[%clk 0:02:48]} 6. O-O {[%clk 0:03:03]}  d6 {[%clk 0:02:45]} 7. h3 {[%clk 0:03:00]}  O-O {[%clk 0:02:44]} 8. Bg5 {[%clk 0:03:00]}  Bxc3 {[%clk 0:02:36]} 9. bxc3 {[%clk 0:03:00]}  Qe8 {[%clk 0:02:27]} 10. Bxf6 {[%clk 0:02:59]}  Rxf6 {[%clk 0:02:27]} 11. e4 {[%clk 0:02:59]}  f4 {[%clk 0:02:26]} 12. d4 {[%clk 0:02:59]}  fxg3 {[%clk 0:02:19]} 13. fxg3 {[%clk 0:02:58]}  Bd7 {[%clk 0:01:58]} 14. d5 {[%clk 0:02:57]}  Na5 {[%clk 0:01:51]} 15. Nh4 {[%clk 0:02:54]}  Rxf1+ {[%clk 0:01:48]} 16. Bxf1 {[%clk 0:02:54]}  Qf7 {[%clk 0:01:33]} 17. Qd2 {[%clk 0:02:53]}  Rf8 {[%clk 0:01:28]} 18. Bd3 {[%clk 0:02:53]}  Bxh3 {[%clk 0:01:22]} 19. Kh2 {[%clk 0:02:51]}  Bg4 {[%clk 0:01:17]} 20. Rf1 {[%clk 0:02:50]}  Qe7 {[%clk 0:01:17]} 21. c4 {[%clk 0:02:49]}  b6 {[%clk 0:01:15]} 22. Nf5 {[%clk 0:02:32]}  Bxf5 {[%clk 0:01:10]} 23. exf5 {[%clk 0:02:31]}  Rf6 {[%clk 0:00:51]} 24. Qe3 {[%clk 0:02:22]}  Rh6+ {[%clk 0:00:50]} 25. Kg2 {[%clk 0:02:22]}  Qf6 {[%clk 0:00:46]} 26. c5 {[%clk 0:02:05]}  bxc5 {[%clk 0:00:41]} 27. Ba6 {[%clk 0:02:04]}  Qf7 {[%clk 0:00:22]} 28. c4 {[%clk 0:01:59]}  Qh5 {[%clk 0:00:21]} 29. Qc3 {[%clk 0:01:37]}  Qh3+ {[%clk 0:00:20]} 30. Kf2 {[%clk 0:01:35]}  Qxf5+ {[%clk 0:00:21]} 31. Ke1 {[%clk 0:01:35]}  Qe4+ {[%clk 0:00:21]} 32. Kd1 {[%clk 0:01:34]}  Qg4+ {[%clk 0:00:20]} 33. Kc1 {[%clk 0:01:30]}  Qg5+ {[%clk 0:00:20]} 34. Kb2 {[%clk 0:01:27]}  Rh2+ {[%clk 0:00:19]} 35. Ka3 {[%clk 0:01:26]}  Rh3 {[%clk 0:00:18]} 36. Rf3 {[%clk 0:01:26]}  h6 {[%clk 0:00:13]} 37. Bc8 {[%clk 0:01:25]}  Rh2 {[%clk 0:00:11]} 38. Be6+ {[%clk 0:01:22]}  Kh7 {[%clk 0:00:09]} 39. Bf5+ {[%clk 0:01:07]}  Kh8 {[%clk 0:00:00]} 40. Bb1 {[%clk 0:01:04]} 1-0


[Site "https://www.chess.com"]

[Event "Titled Tuesday Blitz November 07 Late 2023"]
[White "Kniazev, Igor"]
[Black "Elbebiber"]
[WhiteFideId "4136349"]
[WhiteElo "2180"]
[BlackElo "2114"]
[Result "0-1"]
[Round "11"]
[TimeControl "180+1"]
[Date "2023.11.07"]
[WhiteClock "0:00:00"]
[BlackClock "0:00:24"]
[Board "83"]

1. e4 {[%clk 0:03:00]}  d5 {[%clk 0:02:59]} 2. exd5 {[%clk 0:03:00]}  Nf6 {[%clk 0:02:58]} 3. Nc3 {[%clk 0:03:00]}  Nxd5 {[%clk 0:02:53]} 4. Bc4 {[%clk 0:03:01]}  Nb6 {[%clk 0:02:48]} 5. Bb3 {[%clk 0:02:58]}  Bf5 {[%clk 0:02:20]} 6. Qf3 {[%clk 0:02:55]}  Qc8 {[%clk 0:02:18]} 7. g4 {[%clk 0:02:46]}  Bg6 {[%clk 0:02:12]} 8. h4 {[%clk 0:02:42]}  h5 {[%clk 0:02:12]} 9. g5 {[%clk 0:02:31]}  e6 {[%clk 0:02:08]} 10. Nge2 {[%clk 0:02:23]}  Nc6 {[%clk 0:01:52]} 11. d4 {[%clk 0:02:19]}  Bd6 {[%clk 0:01:44]} 12. Nb5 {[%clk 0:02:13]}  Na5 {[%clk 0:01:33]} 13. Nxd6+ {[%clk 0:02:06]}  cxd6 {[%clk 0:01:33]} 14. c3 {[%clk 0:02:07]}  d5 {[%clk 0:01:24]} 15. Bf4 {[%clk 0:01:59]}  Nac4 {[%clk 0:01:08]} 16. Bxc4 {[%clk 0:01:45]}  Nxc4 {[%clk 0:01:08]} 17. b3 {[%clk 0:01:42]}  Be4 {[%clk 0:01:06]} 18. Qh3 {[%clk 0:01:25]}  Bxh1 {[%clk 0:01:05]} 19. Qxh1 {[%clk 0:01:25]}  Nb6 {[%clk 0:01:01]} 20. Bd6 {[%clk 0:01:23]}  Qd7 {[%clk 0:00:58]} 21. Bc5 {[%clk 0:01:11]}  Nc8 {[%clk 0:00:53]} 22. Qh2 {[%clk 0:01:04]}  Ne7 {[%clk 0:00:49]} 23. Nf4 {[%clk 0:00:37]}  g6 {[%clk 0:00:43]} 24. O-O-O {[%clk 0:00:30]}  b6 {[%clk 0:00:43]} 25. Ba3 {[%clk 0:00:29]}  Rc8 {[%clk 0:00:39]} 26. Qh3 {[%clk 0:00:23]}  Nf5 {[%clk 0:00:35]} 27. Kb2 {[%clk 0:00:17]}  a5 {[%clk 0:00:28]} 28. Nd3 {[%clk 0:00:00]}  Qb5 {[%clk 0:00:24]} 0-1


[Site "https://www.chess.com"]

[Event "Titled Tuesday Blitz November 07 Late 2023"]
[White "Ghosh, Chanchal Kumer"]
[Black "Feliz Dotel, Dewar Bienvenido"]
[WhiteFideId "10201858"]
[BlackFideId "6402801"]
[WhiteElo "2070"]
[BlackElo "2142"]
[Result "0-1"]
[Round "11"]
[TimeControl "180+1"]
[Date "2023.11.08"]
[WhiteClock "0:00:00"]
[BlackClock "0:00:07"]
[Board "84"]

1. e4 {[%clk 0:02:54]}  e5 {[%clk 0:02:45]} 2. Nf3 {[%clk 0:02:54]}  Nc6 {[%clk 0:02:43]} 3. Bc4 {[%clk 0:02:54]}  Nf6 {[%clk 0:02:42]} 4. Ng5 {[%clk 0:02:54]}  d5 {[%clk 0:02:41]} 5. exd5 {[%clk 0:02:55]}  Na5 {[%clk 0:02:41]} 6. Bb5+ {[%clk 0:02:55]}  c6 {[%clk 0:02:42]} 7. dxc6 {[%clk 0:02:55]}  bxc6 {[%clk 0:02:43]} 8. Qf3 {[%clk 0:02:54]}  Be7 {[%clk 0:02:41]} 9. Bxc6+ {[%clk 0:02:54]}  Nxc6 {[%clk 0:02:41]} 10. Qxc6+ {[%clk 0:02:54]}  Bd7 {[%clk 0:02:40]} 11. Qc4 {[%clk 0:02:55]}  O-O {[%clk 0:02:40]} 12. Nc3 {[%clk 0:02:54]}  Rc8 {[%clk 0:02:40]} 13. Qd3 {[%clk 0:02:53]}  h6 {[%clk 0:02:27]} 14. Nf3 {[%clk 0:02:27]}  e4 {[%clk 0:02:14]} 15. Nxe4 {[%clk 0:02:25]}  Nxe4 {[%clk 0:02:13]} 16. Qxe4 {[%clk 0:02:25]}  Bc6 {[%clk 0:02:10]} 17. Qf5 {[%clk 0:02:04]}  g6 {[%clk 0:01:58]} 18. Qh3 {[%clk 0:01:59]}  Bxf3 {[%clk 0:01:56]} 19. Qxf3 {[%clk 0:01:58]}  Rxc2 {[%clk 0:01:55]} 20. O-O {[%clk 0:01:58]}  Bf6 {[%clk 0:01:53]} 21. d3 {[%clk 0:01:52]}  Bxb2 {[%clk 0:01:44]} 22. Bxh6 {[%clk 0:01:40]}  Bxa1 {[%clk 0:01:44]} 23. Bxf8 {[%clk 0:01:39]}  Qxf8 {[%clk 0:01:39]} 24. Rxa1 {[%clk 0:01:38]}  Qa3 {[%clk 0:01:35]} 25. h4 {[%clk 0:01:26]}  Rxa2 {[%clk 0:01:33]} 26. Re1 {[%clk 0:01:17]}  Ra1 {[%clk 0:01:27]} 27. Rxa1 {[%clk 0:01:08]}  Qxa1+ {[%clk 0:01:27]} 28. Kh2 {[%clk 0:01:09]}  a5 {[%clk 0:01:25]} 29. g3 {[%clk 0:01:04]}  a4 {[%clk 0:01:21]} 30. h5 {[%clk 0:01:04]}  a3 {[%clk 0:01:12]} 31. hxg6 {[%clk 0:01:03]}  fxg6 {[%clk 0:01:12]} 32. Qd5+ {[%clk 0:01:02]}  Kg7 {[%clk 0:01:12]} 33. Qd7+ {[%clk 0:01:02]}  Kf6 {[%clk 0:01:11]} 34. Qd8+ {[%clk 0:00:57]}  Kf7 {[%clk 0:01:11]} 35. Qd5+ {[%clk 0:00:53]}  Ke7 {[%clk 0:01:09]} 36. Qc5+ {[%clk 0:00:46]}  Ke6 {[%clk 0:01:01]} 37. Qc6+ {[%clk 0:00:44]}  Ke7 {[%clk 0:01:01]} 38. Qxg6 {[%clk 0:00:41]}  a2 {[%clk 0:01:00]} 39. Qe4+ {[%clk 0:00:34]}  Kd6 {[%clk 0:00:54]} 40. Qf4+ {[%clk 0:00:29]}  Kc6 {[%clk 0:00:28]} 41. Qc4+ {[%clk 0:00:25]}  Kb6 {[%clk 0:00:28]} 42. Qb4+ {[%clk 0:00:20]}  Kc7 {[%clk 0:00:27]} 43. Qb3 {[%clk 0:00:18]}  Qh8+ {[%clk 0:00:26]} 44. Kg2 {[%clk 0:00:16]}  a1=Q {[%clk 0:00:26]} 45. Qc4+ {[%clk 0:00:16]}  Kd7 {[%clk 0:00:26]} 46. Qg4+ {[%clk 0:00:16]}  Ke7 {[%clk 0:00:25]} 47. Qg5+ {[%clk 0:00:14]}  Qaf6 {[%clk 0:00:25]} 48. Qc5+ {[%clk 0:00:14]}  Kf7 {[%clk 0:00:25]} 49. Qd5+ {[%clk 0:00:12]}  Qe6 {[%clk 0:00:23]} 50. Qb7+ {[%clk 0:00:10]}  Kf6 {[%clk 0:00:18]} 51. Qb2+ {[%clk 0:00:09]}  Qe5 {[%clk 0:00:18]} 52. Qb6+ {[%clk 0:00:09]}  Kf5 {[%clk 0:00:15]} 53. Qc6 {[%clk 0:00:08]}  Qhf6 {[%clk 0:00:14]} 54. Qf3+ {[%clk 0:00:05]}  Kg6 {[%clk 0:00:14]} 55. Qg4+ {[%clk 0:00:05]}  Qeg5 {[%clk 0:00:14]} 56. Qe4+ {[%clk 0:00:04]}  Qgf5 {[%clk 0:00:14]} 57. Qa8 {[%clk 0:00:03]}  Qxf2+ {[%clk 0:00:13]} 58. Kh3 {[%clk 0:00:03]}  Q6f5+ {[%clk 0:00:12]} 59. g4 {[%clk 0:00:01]}  Qf1+ {[%clk 0:00:08]} 60. Kg3 {[%clk 0:00:00]}  Qg1+ {[%clk 0:00:07]} 0-1


[Site "https://www.chess.com"]